{"text_format":"3","workbook":"xlsx","n_sheets":1,"sheets":["Протокол ШЭ ВОШ по предмету"],"not_rendered":{"external_links":1,"defined_names":1},"read":"whole","date_system":"1900"}

{"sheet":"Протокол ШЭ ВОШ по предмету","index":0,"n_rows":45,"n_cols":15,"rows_kept":45}
["№","Фамилия","Имя","Отчество","Дата рождения","Пол","Участник с ОВЗ (да/нет)","Класс обучения","Класс участия","Балл","Максимальный балл","Статус","Призёр муниципального этапа прошлого года","ФИО учителя","Место работы учителя"]
[1,"Сахабутдинова ","Диля","Рафисовна","2011-06-30","ж","нет",5,5,23,30,"победитель","нет","Гильмуллина Гулия Рашатовна","МБОУ «Многопрофильный лицей №37» НМР РТ"]
[2,"Ганиева","Зарина ","Альбертовна","2011-04-18","ж","нет",5,5,21,30,"призер","нет","Гильмуллина Гулия Рашатовна","МБОУ «Многопрофильный лицей №37» НМР РТ"]
[3,"Заббаров ","Ранис","Рамисович","2011-01-19","м","нет",5,5,18,30,"участник","нет","Гильмуллина Гулия Рашатовна","МБОУ «Многопрофильный лицей №37» НМР РТ"]
[4,"Кашапова","Алия","Алмазовна","2011-05-19","ж","нет",5,5,17,30,"участник","нет","Гильмуллина Гулия Рашатовна","МБОУ «Многопрофильный лицей №37» НМР РТ"]
[5,"Усманова","Амина","Айратовна","2011-08-27","ж","нет",5,5,15,30,"участник","нет","Гильмуллина Гулия Рашатовна","МБОУ «Многопрофильный лицей №37» НМР РТ"]
[6,"Гарифуллина","Алия ","Айдаровна","2011-03-13","ж","нет",5,5,14,30,"участник","нет","Гильмуллина Гулия Рашатовна","МБОУ «Многопрофильный лицей №37» НМР РТ"]
[7,"Гайнутдинова","Динара","Дамировна","2011-04-25","ж","нет",5,5,11,30,"участник","нет","Гильмуллина Гулия Рашатовна","МБОУ «Многопрофильный лицей №37» НМР РТ"]
[8,"Миннегалиев","Ислам ","Ильдарович","2010-11-17","м","нет",5,5,11,30,"участник","нет","Гильмуллина Гулия Рашатовна","МБОУ «Многопрофильный лицей №37» НМР РТ"]
[9,"Каримова","Аделина","Ильфаровна","2011-05-02","ж","нет",5,5,10,30,"участник","нет","Гильмуллина Гулия Рашатовна","МБОУ «Многопрофильный лицей №37» НМР РТ"]
[10,"Хисматов"," Рустам ","Ленарович","2010-12-21","м","нет",5,5,8,30,"участник","нет","Гильмуллина Гулия Рашатовна","МБОУ «Многопрофильный лицей №37» НМР РТ"]
[11,"Низамиева","Алина","Хамитовна","2011-06-28","ж","нет",5,5,8,30,"участник","нет","Гильмуллина Гулия Рашатовна","МБОУ «Многопрофильный лицей №37» НМР РТ"]
[12,{"$f":"[1]Протокол!B49","v":"Хузин "},{"$f":"[1]Протокол!C49","v":"Риан "},{"$f":"[1]Протокол!D49","v":"Робертович"},"2009-02-25","м","нет",7,7,28,45,"Победитель","нет",{"$f":"$N$42","v":"Усманова Рузиля Решитовна"},"МБОУ «Многопрофильный лицей №37» НМР РТ"]
[13,"Усманова ","Малика","Айратовна","2009-02-26","ж","нет",7,7,26,45,"призер","нет","Усманова Рузиля Решитовна","МБОУ «Многопрофильный лицей №37» НМР РТ"]
[14,"Шагиев ","Расим","Рашитович","2008-11-28","м","нет",7,7,22,45,"участник","нет","Усманова Рузиля Решитовна","МБОУ «Многопрофильный лицей №37» НМР РТ"]
[15,{"$f":"[1]Протокол!B52","v":"Алиева "},{"$f":"[1]Протокол!C52","v":"Айгуль "},{"$f":"[1]Протокол!D52","v":"Айратовна"},{"$f":"[1]Протокол!$F$52","v":"2009-02-09"},"ж","нет",7,7,21,45,"участник","нет",{"$f":"$N$42","v":"Усманова Рузиля Решитовна"},"МБОУ «Многопрофильный лицей №37» НМР РТ"]
[16,{"$f":"[1]Протокол!B45","v":"Хасанов"},{"$f":"[1]Протокол!C45","v":" Хасан "},{"$f":"[1]Протокол!D45","v":"Маратович"},{"$f":"[1]Протокол!$F$45","v":"2009-11-25"},"м","нет",7,7,19,45,"участник","нет","Усманова Рузиля Решитовна","МБОУ «Многопрофильный лицей №37» НМР РТ"]
[17,{"$f":"[1]Протокол!B47","v":"Сибгатуллин "},{"$f":"[1]Протокол!C47","v":"Юсуф "},{"$f":"[1]Протокол!D47","v":"Ильназович"},{"$f":"[1]Протокол!$F$47","v":"2009-11-25"},"м","нет",7,7,14,45,"участник","нет","Усманова Рузиля Решитовна","МБОУ «Многопрофильный лицей №37» НМР РТ"]
[18,{"$f":"[1]Протокол!B51","v":"Фаттахов "},{"$f":"[1]Протокол!C51","v":"Данис "},{"$f":"[1]Протокол!D51","v":"Раисович"},{"$f":"[1]Протокол!$F$51","v":"2009-07-28"},"м","нет",7,7,13,45,"участник","нет","Усманова Рузиля Решитовна","МБОУ «Многопрофильный лицей №37» НМР РТ"]
[19,{"$f":"[1]Протокол!B53","v":"Гильманова "},{"$f":"[1]Протокол!C53","v":"Самина "},{"$f":"[1]Протокол!D53","v":"Рустемовна"},{"$f":"[1]Протокол!F53","v":"2009-01-06"},"ж","нет",7,7,13,45,"участник","нет","Усманова Рузиля Решитовна","МБОУ «Многопрофильный лицей №37» НМР РТ"]
[20,{"$f":"[1]Протокол!B54","v":"Яппаров "},{"$f":"[1]Протокол!C54","v":"Камиль "},{"$f":"[1]Протокол!D54","v":"Рамилевич"},{"$f":"[1]Протокол!F54","v":"2009-06-11"},"м","нет",7,7,10,45,"участник","нет","Усманова Рузиля Решитовна","МБОУ «Многопрофильный лицей №37» НМР РТ"]
[21,"Гильманова ","Самина ","Рустемовна","2009-01-06","ж","нет",7,7,9,45,"участник","нет","Усманова Рузиля Решитовна","МБОУ «Многопрофильный лицей №37» НМР РТ"]
[22,{"$f":"[1]Протокол!B57","v":"Шишкина "},{"$f":"[1]Протокол!C57","v":"Алина "},{"$f":"[1]Протокол!D57","v":"Олеговна"},{"$f":"[1]Протокол!$F$57","v":"2008-10-27"},"ж","нет",8,{"$f":"$H$25","v":8},36,45,"победитель","да","Усманова Рузиля Решитовна","МБОУ «Многопрофильный лицей №37» НМР РТ"]
[23,{"$f":"[1]Протокол!B56","v":"Васильева "},{"$f":"[1]Протокол!C56","v":"Диана "},{"$f":"[1]Протокол!D56","v":"Владимировна"},{"$f":"[1]Протокол!F56","v":"2008-04-24"},"ж","нет",8,{"$f":"$H$25","v":8},32,45,"призер","нет","Усманова Рузиля Решитовна","МБОУ «Многопрофильный лицей №37» НМР РТ"]
[24,{"$f":"[1]Протокол!B55","v":"Мулюкова "},{"$f":"[1]Протокол!C55","v":"Алия "},{"$f":"[1]Протокол!D55","v":"Алмазовна"},{"$f":"[1]Протокол!F55","v":"2008-09-18"},"ж","нет",8,8,28,45,"участник","нет","Усманова Рузиля Решитовна","МБОУ «Многопрофильный лицей №37» НМР РТ"]
[25,{"$f":"[1]Протокол!B59","v":" Хуснутдинов "},{"$f":"[1]Протокол!C59","v":"Айзат "},{"$f":"[1]Протокол!D59","v":"Ильнарович"},{"$f":"[1]Протокол!$F$59","v":"2008-07-31"},"м","нет",8,{"$f":"$H$25","v":8},26,45,"участник","нет","Усманова Рузиля Решитовна","МБОУ «Многопрофильный лицей №37» НМР РТ"]
[26,{"$f":"[1]Протокол!B58","v":"Рахматуллина "},{"$f":"[1]Протокол!C58","v":"Лиана "},{"$f":"[1]Протокол!D58","v":"Айратовна"},{"$f":"[1]Протокол!$F$58","v":"2008-07-27"},"ж","нет",8,8,19,45,"участник","нет","Усманова Рузиля Решитовна","МБОУ «Многопрофильный лицей №37» НМР РТ"]
[27,{"$f":"[1]Протокол!B66","v":"Зубаиров "},{"$f":"[1]Протокол!C66","v":"Камиль "},{"$f":"[1]Протокол!D66","v":"Ренатович"},{"$f":"[1]Протокол!F66","v":"2008-07-01"},"м","нет",8,8,17,45,"участник","нет","Усманова Рузиля Решитовна","МБОУ «Многопрофильный лицей №37» НМР РТ"]
[28,{"$f":"[1]Протокол!B67","v":"Шарифуллин "},{"$f":"[1]Протокол!C67","v":"Марсель "},{"$f":"[1]Протокол!D67","v":"Ильназович"},{"$f":"[1]Протокол!F67","v":"2008-07-31"},"м","нет",8,8,12,45,"участник","нет","Усманова Рузиля Решитовна","МБОУ «Многопрофильный лицей №37» НМР РТ"]
[29,{"$f":"[1]Протокол!B62","v":"Зиннатов"},{"$f":"[1]Протокол!C62","v":"Айрат"},{"$f":"[1]Протокол!D62","v":"Русланович"},{"$f":"[1]Протокол!F62","v":"2008-05-17"},"м","нет",8,8,12,45,"участник","нет","Усманова Рузиля Решитовна","МБОУ «Многопрофильный лицей №37» НМР РТ"]
[30,{"$f":"[1]Протокол!B64","v":"Сабиров "},{"$f":"[1]Протокол!C64","v":"Ильдар "},{"$f":"[1]Протокол!D64","v":"Ильшатович"},{"$f":"[1]Протокол!F64","v":"2008-08-01"},"м","нет",8,8,12,45,{"$f":"$L$32","v":"участник"},"нет","Усманова Рузиля Решитовна","МБОУ «Многопрофильный лицей №37» НМР РТ"]
[31,{"$f":"[1]Протокол!B67","v":"Шарифуллин "},{"$f":"[1]Протокол!C67","v":"Марсель "},{"$f":"[1]Протокол!D67","v":"Ильназович"},{"$f":"[1]Протокол!F67","v":"2008-07-31"},"м","нет",8,8,10,45,"участник","нет","Усманова Рузиля Решитовна","МБОУ «Многопрофильный лицей №37» НМР РТ"]
[32,{"$f":"[1]Протокол!B68","v":"Седышев "},{"$f":"[1]Протокол!C68","v":"Данил "},{"$f":"[1]Протокол!D68","v":"Павлович"},{"$f":"[1]Протокол!F68","v":"2008-05-05"},"м","нет",8,8,7,45,"участник","нет","Усманова Рузиля Решитовна","МБОУ «Многопрофильный лицей №37» НМР РТ"]
[33,"Хамидуллина ","Гульшат","Ильмировна","2007-03-22","ж","нет",{"$f":"$H$37","v":9},9,29,35,"победитель","нет","Усманова Рузиля Решитовна","МБОУ «Многопрофильный лицей №37» НМР РТ"]
[34,"Гайнутдинова ","Ралина ","Дамировна",{"$f":"[1]Протокол!$F$77","v":"2007-05-03"},"ж","нет",9,9,25,35,"призер","нет","Усманова Рузиля Решитовна","МБОУ «Многопрофильный лицей №37» НМР РТ"]
[35,"Ахметова ","Миляуша ","Равилевна",{"$f":"[1]Протокол!$F$79","v":"2007-07-15"},"ж","нет",9,9,22,35,"участник","нет","Усманова Рузиля Решитовна","МБОУ «Многопрофильный лицей №37» НМР РТ"]
[36,{"$f":"[1]Протокол!B75","v":"Каримуллина "},{"$f":"[1]Протокол!C75","v":"Аделя "},{"$f":"[1]Протокол!D75","v":"Рафатовна"},{"$f":"[1]Протокол!$F$75","v":"2007-07-24"},"ж","нет",9,9,18,35,"участник","нет","Усманова Рузиля Решитовна","МБОУ «Многопрофильный лицей №37» НМР РТ"]
[37,{"$f":"[1]Протокол!B78","v":"Юзеев "},{"$f":"[1]Протокол!C78","v":"Вячеслав "},{"$f":"[1]Протокол!D78","v":"Владиславович"},{"$f":"[1]Протокол!$F$78","v":"2007-06-15"},"м","нет",{"$f":"$H$37","v":9},9,18,35,"участник","нет","Усманова Рузиля Решитовна","МБОУ «Многопрофильный лицей №37» НМР РТ"]
[38,{"$f":"[1]Протокол!B82","v":"Маликова "},{"$f":"[1]Протокол!C82","v":"Гульназ "},{"$f":"[1]Протокол!D82","v":"Ильдусовна"},{"$f":"[1]Протокол!$F$82","v":"2007-01-06"},"ж","нет",9,9,15,35,"участник","нет","Усманова Рузиля Решитовна","МБОУ «Многопрофильный лицей №37» НМР РТ"]
[39,{"$f":"[1]Протокол!B76","v":"Юсупов"},{"$f":"[1]Протокол!C76","v":" Адель "},{"$f":"[1]Протокол!D76","v":"Наилевич"},"2007-03-30","м","нет",9,9,14,35,"участник","нет","Усманова Рузиля Решитовна","МБОУ «Многопрофильный лицей №37» НМР РТ"]
[40,{"$f":"[1]Протокол!B81","v":"Ананьева "},{"$f":"[1]Протокол!C81","v":"Алёна "},{"$f":"[1]Протокол!D81","v":"Георгиевна"},{"$f":"[1]Протокол!$F$81","v":"2007-04-06"},"ж","нет",9,9,13,35,"участник","нет","Усманова Рузиля Решитовна","МБОУ «Многопрофильный лицей №37» НМР РТ"]
[41,{"$f":"[1]Протокол!B80","v":"Хусаенова "},{"$f":"[1]Протокол!C80","v":"Айзиля "},{"$f":"[1]Протокол!D80","v":"Зульфатовна"},{"$f":"[1]Протокол!$F$80","v":"2007-08-29"},"ж","нет",9,9,11,35,"участник","нет","Усманова Рузиля Решитовна","МБОУ «Многопрофильный лицей №37» НМР РТ"]
[42,{"$f":"[1]Протокол!B86","v":"Имамутдинов "},{"$f":"[1]Протокол!C86","v":"Зиннур "},{"$f":"[1]Протокол!D86","v":"Ленарович"},{"$f":"[1]Протокол!$F$86","v":"2006-12-19"},"м","нет",9,9,10,35,"участник","нет","Усманова Рузиля Решитовна","МБОУ «Многопрофильный лицей №37» НМР РТ"]
[43,{"$f":"[1]Протокол!B84","v":"Бикбаева "},{"$f":"[1]Протокол!C84","v":"Диляра "},{"$f":"[1]Протокол!D84","v":"Робертовна"},{"$f":"[1]Протокол!$F$84","v":"2007-02-08"},"ж","нет",9,9,9,35,"участник","нет","Усманова Рузиля Решитовна","МБОУ «Многопрофильный лицей №37» НМР РТ"]
[44,"Тагиров  ","Тамерлан","Айдарович","2007-04-16","м","нет",9,9,9,35,"участник","нет",{"$f":"$N$42","v":"Усманова Рузиля Решитовна"},"МБОУ «Многопрофильный лицей №37» НМР РТ"]